fUST/lending_fUST_20251021
["ID","MTS","AMOUNT","RATE_DAILY","PERIOD"]
[391987771,1761060640171,-152.0,0.000322,120]
[391987772,1761060640181,-158.3,0.00032209,15]
[391987774,1761060640191,-151.0,0.00032277,15]
[391987775,1761060640201,-158.3,0.00032309,15]
[391987777,1761060640211,-151.0,0.00032377,15]
[391987778,1761060640221,-158.3,0.00032409,15]
[391987779,1761060640232,-151.0,0.00032477,15]
[391987781,1761060640241,-550.35,0.000325,7]
[391987782,1761060640251,-158.3,0.00032509,15]
[391987783,1761060640261,-282.26672533,0.00032518,2]
[391987784,1761060640273,-473.25744716,0.00032533,5]
[391987786,1761060640283,-500.0,0.00032533,5]
[391987788,1761060640293,-151.0,0.00032577,15]
[391987791,1761060640303,-158.3,0.00032609,15]
[391987793,1761060640313,-151.0,0.00032677,15]
[391987795,1761060640323,-158.3,0.00032709,15]
[391987797,1761060640333,-151.0,0.00032777,15]
[391987798,1761060640343,-158.3,0.00032809,15]
[391987799,1761060640359,-151.0,0.00032877,15]
[391987800,1761060640369,-200.0,0.000329,120]
[391987801,1761060640378,-224.86264,0.000329,120]
[391987802,1761060640388,-158.3,0.00032909,60]
[391987803,1761060640398,-151.0,0.00032977,60]
[391987804,1761060640408,-180.73211647,0.00033,120]
[391987805,1761060640417,-50000.0,0.00033,7]
[391987806,1761060640427,-170.46549692,0.00033,120]
[391987807,1761060640437,-158.3,0.00033009,60]
[391987808,1761060640447,-151.0,0.00033077,60]
[391987809,1761060640457,-501.86687499,0.00033081,5]
[391987810,1761060640467,-158.36886883,0.00033109,60]
[391987811,1761060640476,-151.0,0.00033177,60]
[391987812,1761060640486,-151.0,0.00033277,60]
[391987813,1761060640495,-334.67770878,0.00033287,120]
[391987814,1761060640505,-1152.0,0.00033368,2]
[391987816,1761060640516,-151.0,0.00033377,60]
[391987817,1761060640528,-151.0,0.00033477,60]
[391987818,1761060640538,-152.0,0.000335,120]
[391987819,1761060640548,-150.0,0.000335,30]
[391987820,1761060640558,-151.0,0.00033577,60]
[391987821,1761060640567,-151.0,0.00033677,60]
[391987823,1761060640576,-331.05410071,0.00033727,112]
[391987825,1761060640586,-151.0,0.00033777,60]
[391987826,1761060640596,-151.0,0.00033877,60]
[391987827,1761060640607,-550.35,0.000339,7]
[391987828,1761060640618,-151.0,0.00033977,60]
[391987829,1761060640627,-5057.91863688,0.0003398,2]
[391987830,1761060640637,-569.01362876,0.0003399,60]
[391987831,1761060640647,-154.82380794,0.00034,3]
[391987832,1761060640657,-294.25,0.00034,120]
[391987833,1761060640667,-13214.22934693,0.00034,2]
[391987834,1761060640677,-2857.11843093,0.00034,2]
[391987835,1761060640688,-842.0,0.0003407,120]
[391987836,1761060640698,-2037.0,0.0003407,120]
[391987837,1761060640708,-500.0,0.00034073,2]
[391987838,1761060640718,-151.0,0.00034077,60]
[391987839,1761060640728,-842.0,0.0003408,120]
[391987840,1761060640739,-2037.0,0.0003408,120]
[391987841,1761060640748,-13170.3817447,0.0003408,2]
[391987842,1761060640758,-500.0,0.00034089,120]
[391987843,1761060640767,-500.0,0.00034089,120]
[391987844,1761060640780,-500.0,0.00034089,120]
[391987845,1761060640790,-445.95993516,0.00034089,120]
[391987846,1761060640803,-2999.0,0.00034089,120]
[391987847,1761060640813,-500.0,0.00034089,120]
[391987848,1761060640823,-500.0,0.00034089,120]
[391987849,1761060640832,-500.0,0.00034089,120]
[391987850,1761060640843,-842.0,0.0003409,120]
[391987851,1761060640853,-2037.0,0.0003409,120]
[391987852,1761060640863,-52681.5269787,0.0003409,2]
[391987853,1761060640874,-491.90045408,0.00034099,120]
[391987854,1761060640884,-500.0,0.00034099,120]
[391987855,1761060640894,-500.0,0.00034099,120]
[391987856,1761060640904,-500.0,0.00034099,120]
[391987857,1761060640914,-500.0,0.00034099,120]
[391987858,1761060640925,-500.0,0.00034099,120]
[391987859,1761060640935,-370000.0,0.000341,2]
[391987860,1761060640946,-1993.96,0.000341,14]
[391987861,1761060640956,-978.547334,0.000341,2]
[391987862,1761060640966,-325.559087,0.000341,2]
[391987863,1761060640977,-151.0,0.00034177,60]
[391987864,1761060640988,-2857.11843092,0.00034187,2]
[391987865,1761060640998,-421.00095432,0.0003419,2]
[391987866,1761060641008,-485.00489747,0.000342,120]
[391987867,1761060641018,-677.98237488,0.000342,120]
[391987868,1761060641035,-1852.97669968,0.000342,120]
[391987869,1761060641045,-634.56531962,0.000342,120]
[391987870,1761060641054,-188.27459273,0.000342,120]
[391987871,1761060641064,-181.09763267,0.000342,120]
[391987872,1761060641073,-1664.1510274,0.000342,120]
[391987873,1761060641082,-192.76534299,0.000342,120]
[391987874,1761060641091,-170.62385634,0.000342,120]
[391987875,1761060641100,-1311.95,0.00034236,2]
[391987876,1761060641110,-151.0,0.00034277,60]
[391987877,1761060641121,-13214.22934693,0.00034375,2]
[391987878,1761060641131,-2857.11843092,0.00034375,2]
[391987879,1761060641140,-151.0,0.00034377,60]
[391987880,1761060641150,-589.8769586,0.00034384,30]
[391987881,1761060641159,-589.8769586,0.00034384,30]
[391987882,1761060641168,-298.6241254,0.00034384,30]
[391987883,1761060641178,-153.0,0.00034384,30]
[391987884,1761060641188,-190.1756091,0.00034384,30]
[391987885,1761060641197,-298.6241254,0.00034384,30]
[391987886,1761060641208,-153.0,0.00034384,30]
[391987887,1761060641217,-190.1756091,0.00034384,30]
[391987888,1761060641227,-298.6241254,0.00034384,30]
[391987889,1761060641236,-153.0,0.00034384,30]
[391987890,1761060641246,-190.1756091,0.00034384,30]
[391987891,1761060641255,-153.0,0.00034384,30]
[391987892,1761060641268,-163.278548,0.00034384,30]
[391987893,1761060641283,-151.0,0.00034477,60]
[391987894,1761060641293,-1800.0,0.000345,14]
[391987895,1761060641303,-978.547334,0.00034506,2]
[391987896,1761060641312,-325.559087,0.00034506,2]
[391987897,1761060641322,-2857.11843092,0.00034562,2]
[391987898,1761060641333,-151.0,0.00034577,60]
[391987899,1761060641343,-1111.41961782,0.00034621,2]
[391987900,1761060641353,-978.547334,0.00034655,10]
[391987901,1761060641364,-325.559087,0.00034655,10]
[391987902,1761060641374,-500.0,0.00034673,2]
[391987903,1761060641384,-151.0,0.00034677,60]
[391987904,1761060641393,-589.8769586,0.00034685,30]
[391987905,1761060641403,-978.547334,0.00034697,20]
[391987906,1761060641413,-325.559087,0.00034697,20]
[391987907,1761060641423,-904.6878942,0.000347,30]
[391987908,1761060641433,-1517.88471703,0.000347,12]
[391987909,1761060641443,-589.8769586,0.0003474,30]
[391987910,1761060641452,-188.94425322,0.00034746,30]
[391987911,1761060641462,-188.94,0.00034746,30]
[391987912,1761060641472,-176.34796967,0.00034746,30]
[391987913,1761060641483,-176.34796967,0.00034746,30]
[391987914,1761060641493,-176.34796967,0.00034746,30]
[391987915,1761060641503,-176.34796967,0.00034746,30]
[391987916,1761060641513,-176.34,0.00034746,30]
[391987917,1761060641528,-6497.8044297,0.00034749,2]
[391987918,1761060641539,-13214.22934693,0.00034749,2]
[391987919,1761060641548,-2857.11843092,0.00034749,2]
[391987920,1761060641558,-2999.0,0.00034774,120]
[391987921,1761060641567,-151.0,0.00034777,60]
[391987922,1761060641577,-200.0,0.000348,120]
[391987923,1761060641587,-224.86264,0.000348,120]
[391987924,1761060641596,-160.0,0.000348,35]
[391987925,1761060641606,-160.0,0.000348,35]
[391987926,1761060641615,-160.0,0.000348,35]
[391987927,1761060641625,-356.14579672,0.00034812,120]
[391987928,1761060641635,-155.0,0.00034846,2]
[391987929,1761060641644,-250.0,0.00034846,30]
[391987930,1761060641654,-250.0,0.00034846,30]
[391987931,1761060641663,-374.845508,0.00034846,30]
[391987932,1761060641672,-250.0,0.00034846,10]
[391987933,1761060641682,-250.0,0.00034846,10]
[391987934,1761060641691,-250.0,0.00034846,10]
[391987935,1761060641700,-250.0,0.00034846,10]
[391987936,1761060641709,-250.501735,0.00034846,10]
[391987937,1761060641719,-648442.43263209,0.00034846,20]
[391987938,1761060641738,-14096.20451424,0.00034846,20]
[391987939,1761060641977,481.0,0.00024891,120]
[391987942,1761060643039,-500.0,0.00025999,2]
[391987943,1761060643049,-550.5576294,0.00025999,2]
[391987944,1761060643058,-360.3173706,0.00025999,2]
[391987945,1761060643070,-139.6826294,0.00025999,2]
[391987946,1761060643080,-220.31012744,0.00025999,2]
[391987947,1761060643102,-279.68987256,0.00025999,2]
[391987948,1761060643112,-500.0,0.00025999,2]
[391987950,1761060643121,-569.26244222,0.00025999,2]
[391987951,1761060643130,-500.0,0.00025999,2]
[391987952,1761060643139,-500.0,0.00025999,2]
[391987954,1761060643159,-500.0,0.00025999,2]
[391987955,1761060643170,-500.0,0.00025999,2]
[391987956,1761060643179,-122.26384922,0.00025999,2]
[391987957,1761060643192,-145.76337518,0.00025999,2]
[391987958,1761060643202,-267.25,0.0002699,3]
[391987959,1761060643211,-534.5,0.0002836,3]
[391987960,1761060643221,-514.41,0.000288,7]
[391987961,1761060643230,-514.41,0.000311,7]
[391987965,1761060643240,-514.41,0.000328,7]
[391987966,1761060643395,-514.41,0.000341,14]
[391987967,1761060643408,-14366.43922154,0.00034846,20]
[391987976,1761060643492,481.0,0.00026135,120]
[391987982,1761060643876,-150000.0,0.00034846,20]
[391987983,1761060643888,-608455.82140367,0.00034846,20]
[391987984,1761060644078,-49178.94265288,0.00034846,20]
[391987988,1761060644837,481.0,0.00027442,120]
[391987995,1761060646247,481.0,0.00028814,120]
[391988004,1761060647050,-1123.7,0.00034836,10]
[391988009,1761060647333,-925.97172344,0.00034836,10]
[391988010,1761060647344,-50.04827656,0.00034836,10]
[391988011,1761060647354,-1183.95761952,0.00034846,20]
[391988012,1761060647365,-1286.44427966,0.00034846,20]
[391988014,1761060647394,332.91,0.00022724,2]
[391988015,1761060652027,150.0,0.0001382,30]
[391988016,1761060652460,285.35,0.00016124,30]
[391988017,1761060652888,428.02,0.00018427,30]
[391988018,1761060653327,570.7,0.0002073,30]
[391988019,1761060654008,713.37,0.00023034,30]
[391988020,1761060726917,266.54,0.00022746,2]
[391988033,1761060810145,268.59,0.00022715,2]
[391988035,1761060883461,1000.0,0.00034846,35]
[391988036,1761060894809,265.17,0.00022737,2]
[391988037,1761060979483,261.8,0.00022739,2]
[391988038,1761060984167,395.75764475,0.00024073,2]
[391988040,1761061064011,262.06,0.00022745,2]
[391988041,1761061069182,678.400554,0.00013699,2]
[391988042,1761061069593,678.400554,0.00020187,2]
[391988044,1761061080616,382.28,0.00015984,2]
[391988045,1761061088975,2935.608082,0.00024073,2]
[391988046,1761061155819,258.72,0.00022704,2]
[391988047,1761061198022,175.95,0.00034816,35]
[391988048,1761061198855,269.257277,0.00034816,120]
[391988049,1761061241951,270.45,0.00022711,2]
[391988052,1761061308244,404.72341588,0.00030136,120]
[391988053,1761061325567,267.01,0.00022744,2]
[391988055,1761061330613,150.0,0.00023598,30]
[391988060,1761061415927,265.79,0.00022769,2]
[391988061,1761061421369,150.0,0.00023571,30]
[391988062,1761061450512,8310.0,0.00034815,35]
[391988064,1761061474549,417.15472785,0.00024073,2]
[391988065,1761061497259,260.5,0.00022984,2]
[391988066,1761061501763,150.0,0.00023549,30]
[391988068,1761061560696,9127.31365914,0.00034815,35]
[391988070,1761061583756,255.27,0.00022779,2]
[391988071,1761061589329,150.0,0.00023529,30]
[391988077,1761061666257,250.12,0.00022738,2]
[391988078,1761061670731,150.0,0.00023487,30]
[391988081,1761061704405,308.27640748,0.00034815,120]
[391988082,1761061747910,245.02,0.00022974,2]
[391988083,1761061752382,150.0,0.00023467,30]
[391988085,1761061829756,240.0,0.00022943,2]
[391988126,1761061831998,-150.0,0.000244,14]
[391988129,1761061832008,-504.08941003,0.000244,2]
[391988130,1761061832017,-1025.0,0.00025294,2]
[391988144,1761061832133,-300.0,0.00025294,2]
[391988146,1761061832145,-804.10898505,0.00025295,2]
[391988149,1761061832161,-4944.82301444,0.00025295,2]
[391988150,1761061832173,-3321.28115634,0.00025295,2]
[391988153,1761061832183,-500.0,0.00025303,2]
[391988155,1761061832192,-8930.16243718,0.00025304,2]
[391988213,1761061834668,150.0,0.00023415,30]
[391988244,1761061838047,-1907.52,0.00025295,10]
[391988245,1761061838057,-5612.6437835,0.00025304,2]
[391988246,1761061838067,-500.0,0.00025304,2]
[391988247,1761061838076,-500.0,0.00025304,2]
[391988248,1761061838087,-500.0,0.00025304,2]
[391988249,1761061838097,-388.61358503,0.00025304,2]
[391988250,1761061838106,-500.0,0.00025304,2]
[391988251,1761061838124,-500.0,0.00025304,2]
[391988252,1761061838137,-628.21701417,0.00025304,2]
[391988253,1761061838148,-500.0,0.00025304,2]
[391988254,1761061838158,-500.0,0.00025304,2]
[391988255,1761061838168,-199.89378521,0.00025304,2]
[391988256,1761061838178,-500.0,0.00025304,2]
[391988257,1761061838188,-500.0,0.00025304,2]
[391988258,1761061838198,-500.0,0.00025304,2]
[391988259,1761061838208,-500.0,0.00025304,2]
[391988260,1761061838218,-568.3581893,0.00025304,2]
[391988261,1761061838228,-500.0,0.00025304,2]
[391988262,1761061838238,-500.0,0.00025304,2]
[391988263,1761061838248,-500.0,0.00025304,2]
[391988264,1761061838257,-500.0,0.00025304,2]
[391988265,1761061838267,-500.0,0.00025304,2]
[391988266,1761061838277,-500.0,0.00025304,2]
[391988267,1761061838287,-95000.0,0.00025305,30]
[391988268,1761061838297,-403.05172659,0.00025305,30]
[391988269,1761061838307,-172.5,0.000254,14]
[391988270,1761061838317,-180.45245279,0.000258,2]
[391988271,1761061838327,-8596.0,0.00026,2]
[391988272,1761061838341,-195.0,0.000264,14]
[391988273,1761061838350,-390.15,0.00026508,3]
[391988274,1761061838360,-300.0,0.00026518,30]
[391988275,1761061838370,-300.0,0.00026518,30]
[391988276,1761061838381,-300.0,0.00026518,30]
[391988277,1761061838391,-300.0,0.00026518,30]
[391988278,1761061838401,-300.0,0.00026518,30]
[391988279,1761061838412,-300.0,0.00026518,30]
[391988280,1761061838423,-300.0,0.00026518,30]
[391988281,1761061838433,-300.0,0.00026518,30]
[391988282,1761061838443,-300.0,0.00026518,30]
[391988283,1761061838452,-300.0,0.00026518,30]
[391988284,1761061838462,-300.0,0.00026518,30]
[391988285,1761061838472,-300.0,0.00026518,30]
[391988286,1761061838481,-300.0,0.00026518,30]
[391988287,1761061838491,-300.0,0.00026518,30]
[391988288,1761061838501,-300.0,0.00026518,30]
[391988289,1761061838511,-600.0,0.00026518,30]
[391988290,1761061838521,-780.31,0.00026565,3]
[391988291,1761061838532,-195.08,0.00026656,3]
[391988292,1761061838542,-1560.62,0.00026666,3]
[391988293,1761061838552,-678.400554,0.00026676,2]
[391988294,1761061838562,-479.99,0.00026767,2]
[391988295,1761061838572,-3121.24,0.00026839,3]
[391988296,1761061838582,-409.84556529,0.00027134,2]
[391988297,1761061838592,-500.0,0.00027134,2]
[391988298,1761061838602,-205.71,0.00027317,30]
[391988299,1761061838612,-420.0,0.00027394,2]
[391988300,1761061838622,-217.5,0.000274,14]
[391988301,1761061838632,-321.417,0.00027479,16]
[391988302,1761061838642,-1077.86,0.000275,7]
[391988303,1761061838652,-199.0,0.00027671,7]
[391988304,1761061838661,-780.3,0.00027878,3]
[391988305,1761061838671,-1560.62,0.00027935,3]
[391988306,1761061838681,-199.0,0.00027945,8]
[391988307,1761061838691,-390.16,0.00028026,3]
[391988308,1761061838701,-3121.24,0.00028036,3]
[391988309,1761061838711,-6242.48,0.00028209,3]
[391988310,1761061838728,-199.0,0.00028219,9]
[391988311,1761061838748,-229.2573363,0.000284,14]
[391988312,1761061838763,-209.37024561,0.00028493,10]
[391988313,1761061838778,-403.05,0.00028709,2]
[391988314,1761061838792,-9070.21315583,0.0002877,2]
[391988315,1761061838804,-500.0,0.0002878,14]
[391988316,1761061838819,-500.0,0.0002878,14]
[391988317,1761061838834,-151.0,0.0002878,2]
[391988318,1761061838848,-151.0,0.0002878,14]
[391988319,1761061838861,-267.76271467,0.0002878,14]
[391988320,1761061838876,-151.0,0.0002878,14]
[391988321,1761061838889,-151.0,0.0002878,14]
[391988322,1761061838903,-151.0,0.0002878,14]
[391988323,1761061838919,-151.0,0.0002878,14]
[391988324,1761061838934,-151.0,0.0002878,14]
[391988325,1761061838948,-500.0,0.0002878,14]
[391988326,1761061838961,-403.05172659,0.00028809,2]
[391988327,1761061838977,-500.0,0.00028835,14]
[391988328,1761061838992,-500.0,0.00028835,14]
[391988329,1761061839005,-151.0,0.00028835,14]
[391988330,1761061839019,-500.0,0.00028835,14]
[391988331,1761061839033,-500.0,0.0002889,14]
[391988332,1761061839046,-500.0,0.0002889,14]
[391988333,1761061839059,-198.0,0.0002889,14]
[391988334,1761061839070,-274.41244126,0.0002889,14]
[391988335,1761061839081,-500.0,0.00028944,14]
[391988336,1761061839095,-500.0,0.00028944,14]
[391988337,1761061839108,-500.0,0.00028999,14]
[391988338,1761061839125,-500.0,0.00028999,14]
[391988339,1761061839139,-500.0,0.00029054,14]
[391988340,1761061839154,-500.0,0.00029054,14]
[391988341,1761061839172,-500.0,0.00029109,14]
[391988342,1761061839185,-500.0,0.00029109,14]
[391988343,1761061839199,-500.0,0.00029164,14]
[391988344,1761061839213,-500.0,0.00029164,14]
[391988345,1761061839228,-720.0,0.0002917,30]
[391988346,1761061839242,-500.0,0.00029218,14]
[391988347,1761061839254,-500.0,0.00029273,14]
[391988348,1761061839266,-503.36300446,0.000293,5]
[391988349,1761061839276,-500.0,0.000293,5]
[391988350,1761061839290,-500.0,0.00029328,14]
[391988351,1761061839302,-587.0,0.00029668,2]
[391988352,1761061839314,-1000.0,0.00029848,5]
[391988353,1761061839331,-1000.0,0.00030136,14]
[391988354,1761061839345,-151.0,0.00030136,14]
[391988355,1761061839356,-500.0,0.00030137,2]
[391988356,1761061839368,-599.29778014,0.00030137,2]
[391988357,1761061839381,-500.0,0.00030137,2]
[391988358,1761061839393,-500.0,0.00030137,2]
[391988359,1761061839408,-500.0,0.00030137,2]
[391988360,1761061839420,-500.0,0.00030137,2]
[391988361,1761061839431,-500.0,0.00030137,2]
[391988362,1761061839442,-481.0,0.00030255,120]
[391988363,1761061839454,-5000.0,0.00030318,2]
[391988365,1761061839465,-1500.0,0.00030396,5]
[391988366,1761061839477,-302.35283806,0.000305,120]
[391988367,1761061839489,-1077.86,0.000305,7]
[391988368,1761061839502,-719.99,0.00030591,2]
[391988369,1761061839516,-2000.0,0.00030944,5]
[391988370,1761061839532,-308.57,0.00031219,30]
[391988371,1761061839544,-151.0,0.000314,19]
[391988372,1761061839558,-250.0,0.0003148,2]
[391988373,1761061839569,-250.0,0.0003148,3]
[391988374,1761061839581,-200.0,0.0003148,120]
[391988375,1761061839593,-500.0,0.0003148,120]
[391988376,1761061839605,-2500.0,0.00031492,5]
[391988377,1761061839617,-200.0,0.000315,120]
[391988378,1761061839629,-481.0,0.00031767,120]
[391988379,1761061839641,-1000.0,0.0003204,5]
[391988380,1761061839653,-418.9,0.00032075,15]
[391988381,1761061839664,-500.0,0.00032079,5]
[391988383,1761061839676,-864.0,0.00032087,30]
[391988385,1761061839688,-823.0,0.0003213,2]
[391988386,1761061839699,-418.9,0.00032175,15]
[391988387,1761061839711,-250.0,0.0003224,2]
[391988388,1761061839722,-418.9,0.00032275,15]
[391988389,1761061839735,-200.0,0.000323,120]
[391988390,1761061839746,-151.0,0.000323,16]
[391988392,1761061839759,-418.9,0.00032375,15]
[391988394,1761061839771,-418.9,0.00032475,15]
[391988396,1761061839784,-418.9,0.00032575,15]
[391988398,1761061839796,-183.70084116,0.00032627,5]
[391988400,1761061839807,-418.9,0.00032675,15]
[391988401,1761061839819,-418.9,0.00032775,15]
[391988402,1761061839830,-418.9,0.00032875,15]
[391988403,1761061839842,-1500.0,0.00032876,35]
[391988404,1761061839854,-1361.68355643,0.00032876,35]
[391988405,1761061839865,-2999.0,0.00032876,120]
[391988406,1761061839876,-500.0,0.00032877,30]
[391988407,1761061839888,-949.587869,0.000329,35]
[391988408,1761061839899,-351.15016,0.000329,35]
[391988409,1761061839911,-200.0,0.000329,120]
[391988410,1761061839922,-418.9,0.00032975,60]
[391988411,1761061839933,-1077.86,0.00033,7]
[391988412,1761061839944,-418.9,0.00033075,60]
[391988413,1761061839956,-500.0,0.00033126,120]
[391988414,1761061839968,-500.0,0.00033151,30]
[391988415,1761061839979,-949.587869,0.00033152,35]
[391988416,1761061839991,-351.15016,0.00033152,35]
[391988417,1761061840002,-9070.21315583,0.00033165,2]
[391988419,1761061840012,-678.400554,0.00033165,2]
[391988421,1761061840202,-418.9,0.00033175,60]
[391988422,1761061840217,-151.0,0.000332,16]
[391988423,1761061840227,-150.22440166,0.000332,117]
[391988424,1761061840237,-150.22440164,0.000332,117]
[391988425,1761061840246,-418.9,0.00033275,60]
[391988427,1761061840257,-481.0,0.00033356,120]
[391988428,1761061840267,-418.9,0.00033375,60]
[391988429,1761061840276,-152.608681,0.00033404,35]
[391988430,1761061840286,-949.587869,0.00033404,35]
[391988431,1761061840296,-351.15016,0.00033404,35]
[391988432,1761061840306,-500.0,0.00033425,30]
[391988433,1761061840315,-418.9,0.00033475,60]
[391988434,1761061840325,-150.0,0.000335,30]
[391988435,1761061840340,-2999.0,0.00033561,120]
[391988436,1761061840349,-418.9,0.00033575,60]
[391988437,1761061840359,-276.0,0.00033621,2]
[391988438,1761061840369,-152.608681,0.00033656,35]
[391988439,1761061840380,-949.587869,0.00033656,35]
[391988440,1761061840390,-351.15016,0.00033656,35]
[391988441,1761061840400,-418.9,0.00033675,60]
[391988442,1761061840411,-500.0,0.00033699,30]
[391988443,1761061840420,-418.9,0.00033775,60]
[391988444,1761061840430,-418.9,0.00033875,60]
[391988445,1761061840440,-152.608681,0.00033908,35]
[391988446,1761061840450,-949.587869,0.00033908,35]
[391988447,1761061840460,-351.15016,0.00033908,35]
[391988448,1761061840470,-500.0,0.00033973,30]
[391988449,1761061840479,-418.9,0.00033975,60]
[391988450,1761061840489,-418.9,0.00034075,60]
[391988451,1761061840498,-500.0,0.0003408,120]
[391988452,1761061840508,-500.0,0.00034089,120]
[391988453,1761061840517,-500.0,0.00034089,120]
[391988454,1761061840527,-500.0,0.00034089,120]
[391988455,1761061840537,-502.46996505,0.00034099,120]
[391988456,1761061840547,-151.0,0.000341,12]
[391988457,1761061840556,-418.9,0.00034175,60]
[391988458,1761061840566,-220.3266058,0.000342,120]
[391988459,1761061840576,-2074.14773112,0.000342,120]
[391988460,1761061840585,-1331.32082192,0.000342,120]
[391988461,1761061840595,-485.16351345,0.000342,120]
[391988462,1761061840604,-422.00074537,0.000342,120]
[391988463,1761061840613,-181.26139155,0.000342,120]
[391988464,1761061840623,-507.65225569,0.000342,120]
[391988465,1761061840632,-1190.74819259,0.000342,120]
[391988466,1761061840642,-170.62385634,0.000342,120]
[391988467,1761061840651,-403.05172659,0.000342,120]
[391988468,1761061840661,-2999.0,0.00034246,120]
[391988469,1761061840672,-500.0,0.00034247,30]
[391988470,1761061840681,-418.9,0.00034275,60]
[391988471,1761061840691,-1077.86,0.000343,7]
[391988472,1761061840700,-418.9,0.00034375,60]
[391988473,1761061840710,-959.98,0.00034415,2]
[391988474,1761061840720,-418.9,0.00034475,60]
[391988475,1761061840729,-1233.16781576,0.00034482,2]
[391988476,1761061840739,-500.0,0.00034521,30]
[391988477,1761061840748,-418.9,0.00034575,60]
[391988478,1761061840758,-9070.21315583,0.0003459,2]
[391988479,1761061840768,-1933.0,0.00034596,120]
[391988480,1761061840777,-1933.0,0.00034606,120]
[391988481,1761061840787,-1933.0,0.00034616,120]
[391988482,1761061840796,-10720.54973125,0.00034636,2]
[391988483,1761061840806,-477.27090035,0.0003464,34]
[391988484,1761061840816,-949.587869,0.00034655,10]
[391988485,1761061840827,-351.15016,0.00034655,10]
[391988486,1761061840837,-10720.54973125,0.00034675,2]
[391988487,1761061840847,-418.9,0.00034675,60]
[391988488,1761061840857,-949.587869,0.00034697,20]
[391988489,1761061840867,-351.15016,0.00034697,20]
[391988490,1761061840876,-152.0051154,0.00034699,12]
[391988491,1761061840885,-4360.30932312,0.000347,12]
[391988492,1761061840894,-9070.21315583,0.00034705,2]
[391988493,1761061840904,-10720.54973125,0.00034714,2]
[391988494,1761061840913,-151.8291059,0.00034714,30]
[391988495,1761061840922,-151.8291059,0.00034714,30]
[391988496,1761061840932,-151.8291059,0.00034714,30]
[391988497,1761061840941,-151.8291059,0.00034714,30]
[391988498,1761061840950,-151.8291059,0.00034714,30]
[391988499,1761061840959,-151.8291059,0.00034714,30]
[391988500,1761061840969,-151.8291059,0.00034714,30]
[391988501,1761061840979,-151.82,0.00034714,30]
[391988502,1761061840988,-157.45240611,0.00034714,30]
[391988503,1761061840998,-157.45240611,0.00034714,30]
[391988504,1761061841006,-157.45240611,0.00034714,30]
[391988505,1761061841015,-157.45240611,0.00034714,30]
[391988506,1761061841024,-157.45240611,0.00034714,30]
[391988507,1761061841034,-157.45240611,0.00034714,30]
[391988508,1761061841043,-157.45240611,0.00034714,30]
[391988509,1761061841052,-157.45240611,0.00034714,30]
[391988510,1761061841061,-157.45240611,0.00034714,30]
[391988511,1761061841071,-157.45240611,0.00034714,30]
[391988512,1761061841079,-157.45240611,0.00034714,30]
[391988513,1761061841088,-157.45240611,0.00034714,30]
[391988514,1761061841098,-157.45240611,0.00034714,30]
[391988515,1761061841107,-157.45240611,0.00034714,30]
[391988516,1761061841116,-157.45240611,0.00034714,30]
[391988517,1761061841125,-157.45240611,0.00034714,30]